Workbook

Sheet Sheet1 (2)
A1: 贵州经贸职业技术学院2023年公开招聘工作人员笔试、面试 成绩汇总表及进入体检人员名单公示
A2: 姓名 | B2: 报考岗位名称 | C2: 岗位招考人数 | D2: 笔试原始总成绩 | E2: 笔试折算百分制后总成绩 | F2: 面试成绩 | G2: 总成绩 | H2: 总排名 | I2: 备注
A3: 李梦可 | B3: 22828140101行政管理人员 | C3: 1 | D3: 215.5 | E3: 71.83 | F3: 91 | G3: =$E3*0.5+$F3*0.5 -> 81.42 | H3: 1 | I3: 进入体检
A4: 李平 | B4: 22828140101行政管理人员 | C4: 1 | D4: 203 | E4: 67.67 | F4: 82 | G4: =$E4*0.5+$F4*0.5 -> 74.84 | H4: 2
A5: 卢希洁 | B5: 22828140101行政管理人员 | C5: 1 | D5: 201 | E5: 67 | F5: 81.6 | G5: =$E5*0.5+$F5*0.5 -> 74.30 | H5: 3
A6: 陈媛媛 | B6: 22828140102辅导员 | C6: 4 | D6: 205.5 | E6: 68.5 | F6: 91.4 | G6: =$E6*0.5+$F6*0.5 -> 79.95 | H6: 1 | I6: 进入体检
A7: 吴佳佳 | B7: 22828140102辅导员 | C7: 4 | D7: 204 | E7: 68 | F7: 89.6 | G7: =$E7*0.5+$F7*0.5 -> 78.80 | H7: 2 | I7: 进入体检
A8: 王金梅 | B8: 22828140102辅导员 | C8: 4 | D8: 188 | E8: 62.67 | F8: 91.4 | G8: =$E8*0.5+$F8*0.5 -> 77.04 | H8: 3 | I8: 进入体检
A9: 吴姜燕 | B9: 22828140102辅导员 | C9: 4 | D9: 189 | E9: 63 | F9: 89 | G9: =$E9*0.5+$F9*0.5 -> 76.00 | H9: 4 | I9: 进入体检
A10: 杨军燕 | B10: 22828140102辅导员 | C10: 4 | D10: 198.5 | E10: 66.17 | F10: 85.6 | G10: =$E10*0.5+$F10*0.5 -> 75.89 | H10: 5
A11: 牟丹 | B11: 22828140102辅导员 | C11: 4 | D11: 196.5 | E11: 65.5 | F11: 85.6 | G11: =$E11*0.5+$F11*0.5 -> 75.55 | H11: 6
A12: 秦香岚 | B12: 22828140102辅导员 | C12: 4 | D12: 194.5 | E12: 64.83 | F12: 85 | G12: =$E12*0.5+$F12*0.5 -> 74.92 | H12: 7
A13: 汪丽娟 | B13: 22828140102辅导员 | C13: 4 | D13: 188.5 | E13: 62.83 | F13: 86.6 | G13: =$E13*0.5+$F13*0.5 -> 74.72 | H13: 8
A14: 张江燕 | B14: 22828140102辅导员 | C14: 4 | D14: 186.5 | E14: 62.17 | F14: 86.6 | G14: =$E14*0.5+$F14*0.5 -> 74.39 | H14: 9
A15: 赵永米 | B15: 22828140102辅导员 | C15: 4 | D15: 194 | E15: 64.67 | F15: 84 | G15: =$E15*0.5+$F15*0.5 -> 74.34 | H15: 10
A16: 赖显静 | B16: 22828140102辅导员 | C16: 4 | D16: 199.5 | E16: 66.5 | F16: 79.2 | G16: =$E16*0.5+$F16*0.5 -> 72.85 | H16: 11
A17: 罗越 | B17: 22828140102辅导员 | C17: 4 | D17: 193 | E17: 64.33 | F17: 74.6 | G17: =$E17*0.5+$F17*0.5 -> 69.47 | H17: 12
A18: 杨媛翔 | B18: 22828140103设计教师 | C18: 2 | D18: 203 | E18: 67.67 | F18: 81.8 | G18: =$E18*0.5+$F18*0.5 -> 74.74 | H18: 1 | I18: 进入体检
A19: 黎天宇 | B19: 22828140103设计教师 | C19: 2 | D19: 182 | E19: 60.67 | F19: 88.6 | G19: =$E19*0.5+$F19*0.5 -> 74.64 | H19: 2 | I19: 进入体检
A20: 杨婷 | B20: 22828140103设计教师 | C20: 2 | D20: 193.5 | E20: 64.5 | F20: 81.2 | G20: =$E20*0.5+$F20*0.5 -> 72.85 | H20: 3
A21: 魏昕怡 | B21: 22828140103设计教师 | C21: 2 | D21: 182.5 | E21: 60.83 | F21: 84.6 | G21: =$E21*0.5+$F21*0.5 -> 72.72 | H21: 4
A22: 简榕汐 | B22: 22828140103设计教师 | C22: 2 | D22: 192 | E22: 64 | F22: 81.2 | G22: =$E22*0.5+$F22*0.5 -> 72.60 | H22: 5
A23: 张忠越 | B23: 22828140103设计教师 | C23: 2 | D23: 182.5 | E23: 60.83 | F23: 77.8 | G23: =$E23*0.5+$F23*0.5 -> 69.32 | H23: 6
A24: 高倩倩 | B24: 22828140104托育教师 | C24: 1 | D24: 188.5 | E24: 62.83 | F24: 85.4 | G24: =$E24*0.5+$F24*0.5 -> 74.12 | H24: 1 | I24: 进入体检
A25: 吴怡蕾 | B25: 22828140105思政教师 | C25: 4 | D25: 214 | E25: 71.33 | F25: 86.8 | G25: =$E25*0.5+$F25*0.5 -> 79.07 | H25: 1 | I25: 进入体检
A26: 于潼 | B26: 22828140105思政教师 | C26: 4 | D26: 194 | E26: 64.67 | F26: 82.8 | G26: =$E26*0.5+$F26*0.5 -> 73.74 | H26: 2 | I26: 进入体检
A27: 袁菲菲 | B27: 22828140105思政教师 | C27: 4 | D27: 169 | E27: 56.33 | F27: 89.8 | G27: =$E27*0.5+$F27*0.5 -> 73.07 | H27: 3 | I27: 进入体检
A28: 刘文凯 | B28: 22828140105思政教师 | C28: 4 | D28: 185.5 | E28: 61.83 | F28: 80.8 | G28: =$E28*0.5+$F28*0.5 -> 71.32 | H28: 4 | I28: 进入体检
A29: 程梦瑶 | B29: 22828140105思政教师 | C29: 4 | D29: 200.5 | E29: 66.83 | F29: 74.6 | G29: =$E29*0.5+$F29*0.5 -> 70.72 | H29: 5
A30: 张孝琴 | B30: 22828140105思政教师 | C30: 4 | D30: 184 | E30: 61.33 | F30: 78.8 | G30: =$E30*0.5+$F30*0.5 -> 70.07 | H30: 6
A31: 陈娅娅 | B31: 22828140105思政教师 | C31: 4 | D31: 166.5 | E31: 55.5 | F31: 84.4 | G31: =$E31*0.5+$F31*0.5 -> 69.95 | H31: 7
A32: 王晓艳 | B32: 22828140105思政教师 | C32: 4 | D32: 170.5 | E32: 56.83 | F32: 81.8 | G32: =$E32*0.5+$F32*0.5 -> 69.32 | H32: 8
A33: 代曾晴 | B33: 22828140105思政教师 | C33: 4 | D33: 183 | E33: 61 | F33: 过时取消 | G33: / | H33: / | I33: 过时取消
A34: 吴尽祎 | B34: 22828140105思政教师 | C34: 4 | D34: 181 | E34: 60.33 | F34: 过时取消 | G34: / | H34: / | I34: 过时取消
A35: 李丽丹 | B35: 22828140105思政教师 | C35: 4 | D35: 168 | E35: 56 | F35: 过时取消 | G35: / | H35: / | I35: 过时取消
A36: 彭茜 | B36: 22828140106电子信息教师 | C36: 2 | D36: 208 | E36: 69.33 | F36: 84.4 | G36: =$E36*0.5+$F36*0.5 -> 76.87 | H36: 1 | I36: 进入体检
A37: 孔美亚 | B37: 22828140106电子信息教师 | C37: 2 | D37: 192.5 | E37: 64.17 | F37: 87.8 | G37: =$E37*0.5+$F37*0.5 -> 75.99 | H37: 2 | I37: 进入体检
A38: 周静 | B38: 22828140106电子信息教师 | C38: 2 | D38: 194.5 | E38: 64.83 | F38: 86 | G38: =$E38*0.5+$F38*0.5 -> 75.42 | H38: 3
A39: 唐玉敏 | B39: 22828140106电子信息教师 | C39: 2 | D39: 190 | E39: 63.33 | F39: 84.8 | G39: =$E39*0.5+$F39*0.5 -> 74.07 | H39: 4
A40: 罗兴 | B40: 22828140106电子信息教师 | C40: 2 | D40: 190 | E40: 63.33 | F40: 80.2 | G40: =$E40*0.5+$F40*0.5 -> 71.77 | H40: 5
A41: 丁洁 | B41: 22828140106电子信息教师 | C41: 2 | D41: 181.5 | E41: 60.5 | F41: 82.2 | G41: =$E41*0.5+$F41*0.5 -> 71.35 | H41: 6

Sheet Sheet3
